[Event "*** Titled Tuesday Blitz"]
[Site "Chess.com"]
[Date "2020.04.14"]
[Round "5"]
[White "kingandqueen2017"]
[Black "Monmoransy"]
[Result "0-1"]
[WhiteElo "2348"]
[BlackElo "2613"]
[TimeControl "180+1"]
[EndTime "10:51:09 PDT"]
[Termination "Monmoransy won by resignation"]

1. d4 {[%clk 0:03:00.9]} 1... d5 {[%clk 0:02:59.2]} 2. c4 {[%clk 0:03:01]} 2...
dxc4 {[%clk 0:02:59.3]} 3. e4 {[%clk 0:03:00.8]} 3... b5 {[%clk 0:02:58.6]} 4.
a4 {[%clk 0:03:00.3]} 4... c6 {[%clk 0:02:58.8]} 5. b3 {[%clk 0:02:56.7]} 5...
e5 {[%clk 0:02:58.2]} 6. axb5 {[%clk 0:02:52.6]} 6... cxb5 {[%clk 0:02:48]} 7.
bxc4 {[%clk 0:02:47.8]} 7... b4 {[%clk 0:02:40.4]} 8. d5 {[%clk 0:02:46.1]} 8...
Nf6 {[%clk 0:02:39.2]} 9. Bd3 {[%clk 0:02:45.4]} 9... Nbd7 {[%clk 0:02:34.6]}
10. Nd2 {[%clk 0:02:41.3]} 10... Nc5 {[%clk 0:02:30.8]} 11. Bc2 {[%clk
0:02:41.3]} 11... Bd6 {[%clk 0:02:28.5]} 12. Ne2 {[%clk 0:02:39.2]} 12... O-O
{[%clk 0:02:27.6]} 13. Bb2 {[%clk 0:02:38.7]} 13... a5 {[%clk 0:02:26.8]} 14.
O-O {[%clk 0:02:38.6]} 14... Bd7 {[%clk 0:02:25.6]} 15. f4 {[%clk 0:02:38.1]}
15... Re8 {[%clk 0:02:24.9]} 16. fxe5 {[%clk 0:02:33.9]} 16... Bxe5 {[%clk
0:02:23.4]} 17. Bxe5 {[%clk 0:02:27.7]} 17... Rxe5 {[%clk 0:02:22.7]} 18. Nd4
{[%clk 0:02:27.5]} 18... Ncxe4 {[%clk 0:02:12.2]} 19. Nxe4 {[%clk 0:02:18.9]}
19... Nxe4 {[%clk 0:02:11.2]} 20. Qf3 {[%clk 0:02:07.6]} 20... Nf6 {[%clk
0:02:02.8]} 21. Qf4 {[%clk 0:01:51.8]} 21... Qe7 {[%clk 0:01:51.8]} 22. Bf5
{[%clk 0:01:29.7]} 22... Be8 {[%clk 0:01:24.5]} 23. g4 {[%clk 0:01:13.2]} 23...
h6 {[%clk 0:01:22.7]} 24. h4 {[%clk 0:01:05.5]} 24... a4 {[%clk 0:01:16.4]} 25.
g5 {[%clk 0:01:04.3]} 25... hxg5 {[%clk 0:01:15.5]} 26. hxg5 {[%clk 0:01:03.8]}
26... Nh5 {[%clk 0:01:15.4]} 27. Qd2 {[%clk 0:00:50.8]} 27... g6 {[%clk
0:01:09]} 28. Bh3 {[%clk 0:00:49.2]} 28... Rxg5+ {[%clk 0:00:59.9]} 29. Bg2
{[%clk 0:00:47.5]} 29... Bd7 {[%clk 0:00:45.6]} 30. d6 {[%clk 0:00:44.6]} 30...
Qd8 {[%clk 0:00:39.6]} 31. Kh1 {[%clk 0:00:42.5]} 31... Ng3+ {[%clk 0:00:30.8]}
32. Kg1 {[%clk 0:00:42]} 32... Nxf1 {[%clk 0:00:25.8]} 33. Rxf1 {[%clk
0:00:41.3]} 33... a3 {[%clk 0:00:22.9]} 34. Qf4 {[%clk 0:00:38.6]} 34... Bf5
{[%clk 0:00:14.5]} 35. Nc6 {[%clk 0:00:34.9]} 35... Qb6+ {[%clk 0:00:12.4]} 36.
Kh2 {[%clk 0:00:25.9]} 36... Rxg2+ {[%clk 0:00:12.3]} 37. Kxg2 {[%clk
0:00:24.8]} 37... Qxc6+ {[%clk 0:00:12.5]} 38. Kh2 {[%clk 0:00:25.1]} 38... Rd8
{[%clk 0:00:11.7]} 39. Rd1 {[%clk 0:00:23.2]} 39... a2 {[%clk 0:00:10.9]} 40.
Qe5 {[%clk 0:00:22.3]} 40... Qxc4 {[%clk 0:00:08.5]} 41. Qf6 {[%clk 0:00:18.7]}
41... Qf4+ {[%clk 0:00:08.3]} 42. Kg1 {[%clk 0:00:17.7]} 42... Qg3+ {[%clk
0:00:08.3]} 43. Kh1 {[%clk 0:00:17.9]} 43... Be4+ {[%clk 0:00:07.9]} 0-1

[Event "*** Titled Tuesday Blitz"]
[Site "Chess.com"]
[Date "2020.04.14"]
[Round "5"]
[White "SmoothAsAHedgehog"]
[Black "viditchess"]
[Result "1-0"]
[WhiteElo "2678"]
[BlackElo "2954"]
[TimeControl "180+1"]
[EndTime "10:51:10 PDT"]
[Termination "SmoothAsAHedgehog won by checkmate"]

1. Nf3 {[%clk 0:03:00.9]} 1... d5 {[%clk 0:02:56.9]} 2. c4 {[%clk 0:03:00.7]}
2... d4 {[%clk 0:02:56.8]} 3. b4 {[%clk 0:03:00.7]} 3... c5 {[%clk 0:02:55.3]}
4. bxc5 {[%clk 0:02:55.8]} 4... Nc6 {[%clk 0:02:55.2]} 5. d3 {[%clk 0:02:54.9]}
5... e5 {[%clk 0:02:55]} 6. g3 {[%clk 0:02:55.4]} 6... Bxc5 {[%clk 0:02:55]} 7.
Bg2 {[%clk 0:02:55.9]} 7... Nf6 {[%clk 0:02:55.6]} 8. O-O {[%clk 0:02:56.5]}
8... O-O {[%clk 0:02:56.2]} 9. Ba3 {[%clk 0:02:43.8]} 9... Bxa3 {[%clk
0:02:55.7]} 10. Nxa3 {[%clk 0:02:44.7]} 10... Re8 {[%clk 0:02:56.3]} 11. Nd2
{[%clk 0:02:44.7]} 11... Bf5 {[%clk 0:02:55.4]} 12. Rb1 {[%clk 0:02:41.6]} 12...
Qd7 {[%clk 0:02:49.8]} 13. Nc2 {[%clk 0:02:39.8]} 13... Bh3 {[%clk 0:02:10.8]}
14. Nb4 {[%clk 0:02:34.1]} 14... Bxg2 {[%clk 0:02:09.6]} 15. Kxg2 {[%clk
0:02:35]} 15... Rad8 {[%clk 0:01:57.7]} 16. Nxc6 {[%clk 0:02:32.5]} 16... Qxc6+
{[%clk 0:01:58.2]} 17. Kg1 {[%clk 0:02:31.2]} 17... h5 {[%clk 0:01:42.6]} 18.
Qb3 {[%clk 0:02:11.7]} 18... Rd7 {[%clk 0:01:37]} 19. Qb5 {[%clk 0:02:11.2]}
19... Qe6 {[%clk 0:01:32.2]} 20. f3 {[%clk 0:01:28.7]} 20... h4 {[%clk
0:01:24.5]} 21. Kg2 {[%clk 0:01:26.9]} 21... h3+ {[%clk 0:01:17.6]} 22. Kh1
{[%clk 0:01:21.7]} 22... b6 {[%clk 0:01:06.5]} 23. a4 {[%clk 0:01:15.6]} 23...
Rc8 {[%clk 0:01:05.4]} 24. Ne4 {[%clk 0:01:02.1]} 24... Nxe4 {[%clk 0:01:02]}
25. fxe4 {[%clk 0:01:03]} 25... Rc5 {[%clk 0:00:52.3]} 26. Qb3 {[%clk
0:01:02.5]} 26... g6 {[%clk 0:00:51.7]} 27. Rf2 {[%clk 0:00:33.6]} 27... f5
{[%clk 0:00:50.2]} 28. Rbf1 {[%clk 0:00:22]} 28... fxe4 {[%clk 0:00:48.8]} 29.
dxe4 {[%clk 0:00:21.8]} 29... Rxc4 {[%clk 0:00:29.6]} 30. Rf6 {[%clk 0:00:12.3]}
30... Qg4 {[%clk 0:00:12.9]} 31. Qxc4+ {[%clk 0:00:11.3]} 31... Kh7 {[%clk
0:00:13.4]} 32. Rf7+ {[%clk 0:00:10.3]} 32... Kh6 {[%clk 0:00:14.1]} 33. Qd3
{[%clk 0:00:07.9]} 33... Rxf7 {[%clk 0:00:11.7]} 34. Rxf7 {[%clk 0:00:08.8]}
34... Qc8 {[%clk 0:00:12.4]} 35. Rf1 {[%clk 0:00:08.3]} 35... g5 {[%clk
0:00:12.4]} 36. Qf3 {[%clk 0:00:07.8]} 36... Qc2 {[%clk 0:00:11]} 37. Qf6+
{[%clk 0:00:07.7]} 37... Kh5 {[%clk 0:00:10.9]} 38. Qf7+ {[%clk 0:00:07.7]}
38... Kh6 {[%clk 0:00:11.1]} 39. Rf6# {[%clk 0:00:07]} 1-0

[Event "*** Titled Tuesday Blitz"]
[Site "Chess.com"]
[Date "2020.04.14"]
[Round "5"]
[White "BIG_Pirate"]
[Black "stefan_95"]
[Result "1-0"]
[WhiteElo "2390"]
[BlackElo "2542"]
[TimeControl "180+1"]
[EndTime "10:51:10 PDT"]
[Termination "BIG_Pirate won on time"]

1. Nf3 {[%clk 0:03:00.9]} 1... Nf6 {[%clk 0:02:59.3]} 2. c4 {[%clk 0:03:00.9]}
2... e6 {[%clk 0:02:59.4]} 3. g3 {[%clk 0:03:00.8]} 3... d5 {[%clk 0:02:59.4]}
4. Bg2 {[%clk 0:03:01.1]} 4... Be7 {[%clk 0:02:59.5]} 5. O-O {[%clk 0:03:01.3]}
5... O-O {[%clk 0:03:00]} 6. d4 {[%clk 0:03:01.3]} 6... dxc4 {[%clk 0:03:00.3]}
7. Qc2 {[%clk 0:03:01.5]} 7... b6 {[%clk 0:03:00.2]} 8. Ne5 {[%clk 0:02:59.9]}
8... Qxd4 {[%clk 0:02:59.6]} 9. Bxa8 {[%clk 0:02:59.4]} 9... Qxe5 {[%clk
0:02:59.8]} 10. Bg2 {[%clk 0:02:59.1]} 10... Ba6 {[%clk 0:02:29.6]} 11. Bf4
{[%clk 0:02:57]} 11... Qc5 {[%clk 0:02:26.5]} 12. Nc3 {[%clk 0:02:55.2]} 12...
b5 {[%clk 0:02:21.2]} 13. Be3 {[%clk 0:02:49.2]} 13... Qh5 {[%clk 0:02:18.6]}
14. Bxa7 {[%clk 0:02:46.6]} 14... b4 {[%clk 0:01:57.1]} 15. Ne4 {[%clk
0:02:42.5]} 15... Nd5 {[%clk 0:01:55]} 16. Bc5 {[%clk 0:02:27.4]} 16... Bxc5
{[%clk 0:01:33.9]} 17. Nxc5 {[%clk 0:02:27.5]} 17... Ne3 {[%clk 0:01:34.2]} 18.
fxe3 {[%clk 0:02:09]} 18... Qxc5 {[%clk 0:01:34.5]} 19. Qe4 {[%clk 0:02:02.1]}
19... Nd7 {[%clk 0:01:27.2]} 20. Qd4 {[%clk 0:01:48.7]} 20... Qb5 {[%clk
0:01:05]} 21. a4 {[%clk 0:01:39.7]} 21... bxa3 {[%clk 0:00:55.6]} 22. Rxa3
{[%clk 0:01:39.7]} 22... Nf6 {[%clk 0:00:52.6]} 23. Rfa1 {[%clk 0:01:27.3]}
23... Bb7 {[%clk 0:00:32.3]} 24. Ra5 {[%clk 0:01:19.9]} 24... Qb4 {[%clk
0:00:31.8]} 25. R5a4 {[%clk 0:01:16.4]} 25... Qb5 {[%clk 0:00:31.2]} 26. Qxc4
{[%clk 0:01:13.5]} 26... Qb6 {[%clk 0:00:29.4]} 27. Qd4 {[%clk 0:01:12.6]} 27...
c5 {[%clk 0:00:26]} 28. Qe5 {[%clk 0:00:41.9]} 28... Bxg2 {[%clk 0:00:24.1]} 29.
Kxg2 {[%clk 0:00:42.8]} 29... Qc6+ {[%clk 0:00:18.5]} 30. Kg1 {[%clk 0:00:37.5]}
30... Nd5 {[%clk 0:00:17.4]} 31. Ra6 {[%clk 0:00:29.1]} 31... Qb7 {[%clk
0:00:16.2]} 32. Ra7 {[%clk 0:00:27.9]} 32... Qc6 {[%clk 0:00:14.7]} 33. R1a6
{[%clk 0:00:27.8]} 33... Qb5 {[%clk 0:00:14.2]} 34. Ra8 {[%clk 0:00:27.7]} 34...
Nf6 {[%clk 0:00:04.6]} 35. Rxf8+ {[%clk 0:00:26.6]} 35... Kxf8 {[%clk 0:00:05]}
36. Ra8+ {[%clk 0:00:22.2]} 36... Ne8 {[%clk 0:00:04.1]} 37. Qd6+ {[%clk
0:00:18.3]} 37... Kg8 {[%clk 0:00:03]} 38. Qe7 {[%clk 0:00:17]} 38... h6 {[%clk
0:00:02.5]} 39. Qxe8+ {[%clk 0:00:17.1]} 39... Kh7 {[%clk 0:00:01.9]} 40. Qxb5
{[%clk 0:00:16.4]} 1-0

[Event "*** Titled Tuesday Blitz"]
[Site "Chess.com"]
[Date "2020.04.14"]
[Round "5"]
[White "Jumbo"]
[Black "GianmarcoVaR"]
[Result "1-0"]
[WhiteElo "2857"]
[BlackElo "2628"]
[TimeControl "180+1"]
[EndTime "10:51:13 PDT"]
[Termination "Jumbo won by checkmate"]

1. d4 {[%clk 0:03:00.9]} 1... Nf6 {[%clk 0:03:00.2]} 2. Nf3 {[%clk 0:03:01.1]}
2... e6 {[%clk 0:03:00.7]} 3. c4 {[%clk 0:03:00.3]} 3... Bb4+ {[%clk 0:02:59.5]}
4. Bd2 {[%clk 0:02:58.4]} 4... c5 {[%clk 0:02:59.6]} 5. Bxb4 {[%clk 0:02:56.9]}
5... cxb4 {[%clk 0:02:59.9]} 6. g3 {[%clk 0:02:57.8]} 6... b6 {[%clk 0:03:00.1]}
7. Bg2 {[%clk 0:02:58.1]} 7... Bb7 {[%clk 0:03:00.6]} 8. O-O {[%clk 0:02:54.4]}
8... O-O {[%clk 0:03:00.9]} 9. a3 {[%clk 0:02:54.5]} 9... bxa3 {[%clk 0:03:00]}
10. Rxa3 {[%clk 0:02:54.5]} 10... d6 {[%clk 0:02:58.2]} 11. Nc3 {[%clk
0:02:40.1]} 11... Qe7 {[%clk 0:02:41.7]} 12. Qb1 {[%clk 0:02:27.3]} 12... Rc8
{[%clk 0:02:37.9]} 13. b3 {[%clk 0:02:00.9]} 13... d5 {[%clk 0:02:35.5]} 14. Ra4
{[%clk 0:02:01]} 14... Bc6 {[%clk 0:02:35.8]} 15. Ra2 {[%clk 0:01:53.5]} 15...
Bb7 {[%clk 0:02:29.1]} 16. Nd2 {[%clk 0:01:43]} 16... Nc6 {[%clk 0:02:25.4]} 17.
e3 {[%clk 0:01:42.1]} 17... Nb4 {[%clk 0:02:23.9]} 18. Ra4 {[%clk 0:01:40.8]}
18... Bc6 {[%clk 0:02:22.7]} 19. Ra1 {[%clk 0:01:40]} 19... a5 {[%clk
0:02:13.9]} 20. Rc1 {[%clk 0:01:34.3]} 20... Qb7 {[%clk 0:02:01.2]} 21. Bf1
{[%clk 0:01:26.5]} 21... Rc7 {[%clk 0:01:53]} 22. cxd5 {[%clk 0:01:06.2]} 22...
Nfxd5 {[%clk 0:01:53.2]} 23. Nc4 {[%clk 0:01:05.7]} 23... Nxc3 {[%clk
0:01:44.5]} 24. Rxc3 {[%clk 0:01:06.6]} 24... Be4 {[%clk 0:01:17.3]} 25. Qb2
{[%clk 0:01:06.4]} 25... Rac8 {[%clk 0:00:55.4]} 26. Qd2 {[%clk 0:00:52]} 26...
Qc6 {[%clk 0:00:24.8]} 27. Rcc1 {[%clk 0:00:51.5]} 27... h6 {[%clk 0:00:12.6]}
28. h3 {[%clk 0:00:31.3]} 28... Nd5 {[%clk 0:00:12]} 29. Qe2 {[%clk 0:00:23.2]}
29... b5 {[%clk 0:00:10.1]} 30. f3 {[%clk 0:00:19.3]} 30... Bh7 {[%clk
0:00:04.2]} 31. e4 {[%clk 0:00:18.8]} 31... Nb4 {[%clk 0:00:03.5]} 32. Nxa5
{[%clk 0:00:16.8]} 32... Qxc1 {[%clk 0:00:03.3]} 33. Rxc1 {[%clk 0:00:17.3]}
33... Rxc1 {[%clk 0:00:03.7]} 34. Qxb5 {[%clk 0:00:17.9]} 34... Nc2 {[%clk
0:00:03.7]} 35. Nc4 {[%clk 0:00:17.8]} 35... Nxd4 {[%clk 0:00:03.2]} 36. Qd7
{[%clk 0:00:18.2]} 36... Nxf3+ {[%clk 0:00:02.3]} 37. Kf2 {[%clk 0:00:18.5]}
37... R8xc4 {[%clk 0:00:01.4]} 38. Qe8# {[%clk 0:00:15.3]} 1-0

[Event "*** Titled Tuesday Blitz"]
[Site "Chess.com"]
[Date "2020.04.14"]
[Round "5"]
[White "JesseFebruary"]
[Black "ZenBull"]
[Result "1-0"]
[WhiteElo "1767"]
[BlackElo "2133"]
[TimeControl "180+1"]
[EndTime "10:51:14 PDT"]
[Termination "JesseFebruary won on time"]

1. e4 {[%clk 0:03:00.7]} 1... c5 {[%clk 0:02:58.2]} 2. Nf3 {[%clk 0:02:52.4]}
2... Nc6 {[%clk 0:02:55.5]} 3. d4 {[%clk 0:02:47.5]} 3... cxd4 {[%clk
0:02:53.9]} 4. Nxd4 {[%clk 0:02:48.4]} 4... Nf6 {[%clk 0:02:53.2]} 5. Nc3 {[%clk
0:02:44.2]} 5... e5 {[%clk 0:02:52.9]} 6. Nde2 {[%clk 0:02:44.2]} 6... Bb4
{[%clk 0:02:49.4]} 7. a3 {[%clk 0:02:41.6]} 7... Be7 {[%clk 0:02:46.3]} 8. g3
{[%clk 0:02:42]} 8... O-O {[%clk 0:02:45.6]} 9. Bg2 {[%clk 0:02:42.2]} 9... a6
{[%clk 0:02:44.7]} 10. O-O {[%clk 0:02:40.8]} 10... d6 {[%clk 0:02:45]} 11. h3
{[%clk 0:02:38.1]} 11... Be6 {[%clk 0:02:32.4]} 12. Be3 {[%clk 0:02:36]} 12...
Rc8 {[%clk 0:01:05.5]} 13. Kh2 {[%clk 0:02:31.1]} 13... Nd7 {[%clk 0:01:03]} 14.
f4 {[%clk 0:02:21.6]} 14... f5 {[%clk 0:01:01.6]} 15. Nd5 {[%clk 0:02:12.6]}
15... fxe4 {[%clk 0:00:57.4]} 16. Bxe4 {[%clk 0:02:10.3]} 16... exf4 {[%clk
0:00:51.4]} 17. Nexf4 {[%clk 0:02:08.6]} 17... Bf7 {[%clk 0:00:51.2]} 18. Qd3
{[%clk 0:01:46.5]} 18... h6 {[%clk 0:00:41.3]} 19. Bh7+ {[%clk 0:01:34.7]} 19...
Kh8 {[%clk 0:00:41.1]} 20. Ng6+ {[%clk 0:01:22.9]} 20... Bxg6 {[%clk 0:00:34.5]}
21. Bxg6 {[%clk 0:01:23.8]} 21... Nde5 {[%clk 0:00:32.3]} 22. Qe4 {[%clk
0:01:12.4]} 22... Bf6 {[%clk 0:00:17.2]} 23. Bb6 {[%clk 0:00:47.8]} 23... Qd7
{[%clk 0:00:13.1]} 24. Nxf6 {[%clk 0:00:45.7]} 24... Rxf6 {[%clk 0:00:14]} 25.
Rxf6 {[%clk 0:00:45.1]} 25... gxf6 {[%clk 0:00:14.9]} 26. Bf5 {[%clk 0:00:41.9]}
26... Qe8 {[%clk 0:00:14]} 27. Bxc8 {[%clk 0:00:41.7]} 27... Qxc8 {[%clk
0:00:14.9]} 28. Be3 {[%clk 0:00:36]} 28... Qg8 {[%clk 0:00:11.1]} 29. Bxh6
{[%clk 0:00:20.5]} 29... Qf7 {[%clk 0:00:06]} 30. Bf4 {[%clk 0:00:16.2]} 30...
Kg8 {[%clk 0:00:05.2]} 31. Bxe5 {[%clk 0:00:16]} 31... dxe5 {[%clk 0:00:04.2]}
32. Rd1 {[%clk 0:00:15]} 32... Kg7 {[%clk 0:00:02.5]} 33. Qg4+ {[%clk
0:00:13.1]} 33... Kh6 {[%clk 0:00:01.2]} 34. Rd7 {[%clk 0:00:10.1]} 1-0

[Event "*** Titled Tuesday Blitz"]
[Site "Chess.com"]
[Date "2020.04.14"]
[Round "5"]
[White "Jenia84"]
[Black "FILI86"]
[Result "1-0"]
[WhiteElo "2350"]
[BlackElo "2592"]
[TimeControl "180+1"]
[EndTime "10:51:15 PDT"]
[Termination "Jenia84 won by resignation"]

1. Nf3 {[%clk 0:02:56.6]} 1... c5 {[%clk 0:03:00.9]} 2. e4 {[%clk 0:02:55.4]}
2... e6 {[%clk 0:03:00.2]} 3. c4 {[%clk 0:02:52.2]} 3... b6 {[%clk 0:02:59.3]}
4. Nc3 {[%clk 0:02:49.4]} 4... Bb7 {[%clk 0:02:59.4]} 5. d4 {[%clk 0:02:47.6]}
5... cxd4 {[%clk 0:02:59.5]} 6. Nxd4 {[%clk 0:02:48.1]} 6... a6 {[%clk
0:02:59.9]} 7. Bd3 {[%clk 0:02:46.7]} 7... Qc7 {[%clk 0:03:00]} 8. Be3 {[%clk
0:02:45.1]} 8... Nf6 {[%clk 0:02:59.3]} 9. a3 {[%clk 0:02:42.6]} 9... Nc6 {[%clk
0:02:58.7]} 10. f4 {[%clk 0:02:35.5]} 10... Nxd4 {[%clk 0:02:57]} 11. Bxd4
{[%clk 0:02:34.5]} 11... Qxf4 {[%clk 0:02:46]} 12. Bxb6 {[%clk 0:02:32.8]} 12...
Be7 {[%clk 0:02:17]} 13. Qe2 {[%clk 0:02:27.2]} 13... O-O {[%clk 0:02:14.6]} 14.
Be3 {[%clk 0:02:14.3]} 14... Qc7 {[%clk 0:02:10.9]} 15. O-O {[%clk 0:02:10.3]}
15... d6 {[%clk 0:02:01.5]} 16. Kh1 {[%clk 0:02:05]} 16... Rac8 {[%clk
0:01:59.9]} 17. Bd4 {[%clk 0:01:51]} 17... Nd7 {[%clk 0:01:57]} 18. e5 {[%clk
0:01:46.2]} 18... dxe5 {[%clk 0:01:52.6]} 19. Be3 {[%clk 0:01:40.4]} 19... f5
{[%clk 0:01:52]} 20. Rad1 {[%clk 0:01:38.4]} 20... Bf6 {[%clk 0:01:51.8]} 21.
Qf2 {[%clk 0:01:26.8]} 21... e4 {[%clk 0:01:43.5]} 22. Be2 {[%clk 0:01:26.1]}
22... Ne5 {[%clk 0:01:43.6]} 23. Bf4 {[%clk 0:01:23.6]} 23... Rfd8 {[%clk
0:01:34.3]} 24. h4 {[%clk 0:01:20.9]} 24... Qe7 {[%clk 0:01:31.6]} 25. h5 {[%clk
0:01:16.3]} 25... Nd3 {[%clk 0:01:30.7]} 26. Bxd3 {[%clk 0:01:13.9]} 26... exd3
{[%clk 0:01:31.6]} 27. Qg3 {[%clk 0:01:10.2]} 27... Rxc4 {[%clk 0:01:29.8]} 28.
Rxd3 {[%clk 0:01:07.5]} 28... Rxd3 {[%clk 0:01:03]} 29. Qxd3 {[%clk 0:01:07]}
29... Rd4 {[%clk 0:01:02.6]} 30. Qe2 {[%clk 0:01:01.7]} 30... e5 {[%clk
0:00:57.7]} 31. Be3 {[%clk 0:01:01.1]} 31... Rg4 {[%clk 0:00:57.6]} 32. Rxf5
{[%clk 0:00:56.3]} 32... Bxg2+ {[%clk 0:00:48]} 33. Kh2 {[%clk 0:00:55]} 33...
Rh4+ {[%clk 0:00:15.3]} 34. Kxg2 {[%clk 0:00:54.3]} 34... Qe6 {[%clk 0:00:15.8]}
35. Qf3 {[%clk 0:00:50.1]} 35... e4 {[%clk 0:00:16.1]} 36. Qf1 {[%clk
0:00:45.6]} 36... Rg4+ {[%clk 0:00:15.6]} 37. Kh3 {[%clk 0:00:42.7]} 37... Rh4+
{[%clk 0:00:15.1]} 38. Kg3 {[%clk 0:00:41.6]} 38... h6 {[%clk 0:00:15.1]} 39. b3
{[%clk 0:00:36.9]} 39... Kh8 {[%clk 0:00:11.5]} 40. Nd5 {[%clk 0:00:36.9]} 40...
Qd6+ {[%clk 0:00:11]} 41. Bf4 {[%clk 0:00:34.9]} 41... Qe6 {[%clk 0:00:10.3]}
42. Bxh6 {[%clk 0:00:25.2]} 42... Be7 {[%clk 0:00:09.7]} 43. Nxe7 {[%clk
0:00:19.4]} 43... Qxe7 {[%clk 0:00:07]} 44. Bg5 {[%clk 0:00:19.3]} 1-0

[Event "*** Titled Tuesday Blitz"]
[Site "Chess.com"]
[Date "2020.04.14"]
[Round "5"]
[White "gmkomarov"]
[Black "Gennady_Kozlov"]
[Result "1/2-1/2"]
[WhiteElo "2404"]
[BlackElo "2578"]
[TimeControl "180+1"]
[EndTime "10:51:15 PDT"]
[Termination "Game drawn by repetition"]

1. d4 {[%clk 0:03:00.9]} 1... e6 {[%clk 0:02:59.3]} 2. c4 {[%clk 0:03:00.5]}
2... b6 {[%clk 0:02:59.3]} 3. a3 {[%clk 0:02:59.9]} 3... Bb7 {[%clk 0:02:59]} 4.
Nc3 {[%clk 0:02:59.9]} 4... f5 {[%clk 0:02:59.7]} 5. d5 {[%clk 0:03:00]} 5...
Nf6 {[%clk 0:03:00.6]} 6. g3 {[%clk 0:03:00.2]} 6... Ne4 {[%clk 0:02:59.4]} 7.
Nxe4 {[%clk 0:02:58.1]} 7... fxe4 {[%clk 0:02:58.7]} 8. Bg2 {[%clk 0:02:57.6]}
8... exd5 {[%clk 0:02:59]} 9. cxd5 {[%clk 0:02:56.7]} 9... Qe7 {[%clk
0:02:59.6]} 10. Nh3 {[%clk 0:02:54.3]} 10... Qe5 {[%clk 0:02:54.6]} 11. O-O
{[%clk 0:02:47.3]} 11... Bc5 {[%clk 0:02:52.1]} 12. Bf4 {[%clk 0:02:42]} 12...
Qxd5 {[%clk 0:02:49.4]} 13. Qc2 {[%clk 0:02:37.6]} 13... O-O {[%clk 0:02:44.5]}
14. Rad1 {[%clk 0:02:35.8]} 14... Qf5 {[%clk 0:02:33.7]} 15. b4 {[%clk
0:02:28.7]} 15... Be7 {[%clk 0:02:16.6]} 16. Qxc7 {[%clk 0:02:27.2]} 16... Bc6
{[%clk 0:02:13.1]} 17. Qe5 {[%clk 0:02:15.4]} 17... Qxe5 {[%clk 0:02:11.6]} 18.
Bxe5 {[%clk 0:02:15]} 18... d5 {[%clk 0:02:08.5]} 19. Nf4 {[%clk 0:02:13.1]}
19... Nd7 {[%clk 0:01:42.4]} 20. Nxd5 {[%clk 0:02:11.8]} 20... Bxd5 {[%clk
0:01:34.2]} 21. Rxd5 {[%clk 0:02:10.6]} 21... Nxe5 {[%clk 0:01:34.6]} 22. Rxe5
{[%clk 0:02:10.4]} 22... Bf6 {[%clk 0:01:35.5]} 23. Rxe4 {[%clk 0:02:09.7]}
23... Rac8 {[%clk 0:01:36.1]} 24. Bh3 {[%clk 0:02:02]} 24... Rc3 {[%clk
0:01:35]} 25. Be6+ {[%clk 0:02:00.6]} 25... Kh8 {[%clk 0:01:31.9]} 26. a4 {[%clk
0:01:59.9]} 26... g5 {[%clk 0:01:30.8]} 27. b5 {[%clk 0:01:54.2]} 27... Rd8
{[%clk 0:01:30.4]} 28. Rc4 {[%clk 0:01:48.7]} 28... Ra3 {[%clk 0:01:28.9]} 29.
Bf5 {[%clk 0:01:42.7]} 29... Bd4 {[%clk 0:01:19.6]} 30. Bd3 {[%clk 0:01:38.4]}
30... Bc5 {[%clk 0:01:18.7]} 31. Kg2 {[%clk 0:01:36.9]} 31... Kg7 {[%clk
0:01:17.2]} 32. h4 {[%clk 0:01:36.2]} 32... h6 {[%clk 0:01:16.7]} 33. hxg5
{[%clk 0:01:35.6]} 33... hxg5 {[%clk 0:01:17.6]} 34. Rh1 {[%clk 0:01:33.6]}
34... Rf8 {[%clk 0:01:17.2]} 35. f3 {[%clk 0:01:25.6]} 35... Kg8 {[%clk
0:01:07.4]} 36. Rh5 {[%clk 0:01:22.3]} 36... Rd8 {[%clk 0:01:02.4]} 37. Rxg5+
{[%clk 0:01:21.1]} 37... Kf7 {[%clk 0:01:03.3]} 38. Rf4+ {[%clk 0:01:18.4]}
38... Ke7 {[%clk 0:01:02.7]} 39. Rg7+ {[%clk 0:01:14.4]} 39... Kd6 {[%clk
0:01:02.7]} 40. Rxa7 {[%clk 0:01:11]} 40... Ra1 {[%clk 0:01:01.4]} 41. Rh4
{[%clk 0:01:05.3]} 41... Rg8 {[%clk 0:00:56.5]} 42. g4 {[%clk 0:01:01.2]} 42...
Rg1+ {[%clk 0:00:43]} 43. Kh2 {[%clk 0:01:00.7]} 43... Rd1 {[%clk 0:00:43.6]}
44. Rf7 {[%clk 0:00:54]} 44... Ke5 {[%clk 0:00:42.2]} 45. Rf5+ {[%clk
0:00:44.1]} 45... Kd4 {[%clk 0:00:41.9]} 46. g5+ {[%clk 0:00:26.7]} 46... Ke3
{[%clk 0:00:41.5]} 47. f4 {[%clk 0:00:26.5]} 47... Kf2 {[%clk 0:00:38.3]} 48.
Rxc5 {[%clk 0:00:24.4]} 48... bxc5 {[%clk 0:00:37.5]} 49. g6 {[%clk 0:00:23.4]}
49... Rxd3 {[%clk 0:00:33.3]} 50. exd3 {[%clk 0:00:22.2]} 50... Rxg6 {[%clk
0:00:34.2]} 51. a5 {[%clk 0:00:20.1]} 51... Rg2+ {[%clk 0:00:34]} 52. Kh3 {[%clk
0:00:19.3]} 52... Rg3+ {[%clk 0:00:34]} 53. Kh2 {[%clk 0:00:19.5]} 53... Rg2+
{[%clk 0:00:34.9]} 54. Kh3 {[%clk 0:00:19.7]} 54... Rg3+ {[%clk 0:00:35.2]} 55.
Kh2 {[%clk 0:00:19.9]} 55... Rg2+ {[%clk 0:00:36.1]} 1/2-1/2